bitfinex/quotes_SOLUSD_20241113
["timestamp","ask_amount","ask_price","bid_price","bid_amount"]
[1731509537504,0.2,216.01,215.99,152.822]
[1731509538776,0.1,216.01,215.95,2.13635886]
[1731509539104,0.1,216.08,215.95,164.23635886]
[1731509539309,0.1,216.07,215.95,2.13635886]
[1731509539481,0.1,216.05,215.95,2.13635886]
[1731509539681,276.49839286,216.09,215.97,23.51032579]
[1731509539881,276.49839286,216.09,215.96,23.19938301]
[1731509540183,276.49839286,216.09,215.95,2.13635886]
[1731509540184,276.49839286,216.09,215.99,23.32433633]
[1731509540485,276.49839286,216.09,215.97,23.51032579]
[1731509540686,276.49839286,216.09,215.96,23.19938301]
[1731509540988,276.49839286,216.09,215.99,4.632]
[1731509541179,276.49839286,216.09,215.95,2.13635886]
[1731509541180,276.49839286,216.09,215.96,23.46335796]
[1731509541380,276.59839286,216.09,215.95,2.13635886]
[1731509541577,276.49839286,216.09,215.95,2.13635886]
[1731509541776,276.49839286,216.09,215.99,20.12549]
[1731509542298,276.49839286,216.09,215.99,23.71444338]
[1731509542507,276.49839286,216.09,215.99,162.22549]
[1731509543096,276.49839286,216.09,215.99,162.1]
[1731509543397,276.49839286,216.09,215.99,165.39352241]
[1731509543709,276.49839286,216.09,215.99,162.1]
[1731509546105,276.49839286,216.09,215.99,157.468]
[1731509547196,276.49839286,216.09,215.99,152.836]
[1731509547505,276.49839286,216.09,215.99,151.414642]
[1731509547708,276.49839286,216.09,215.99,175.40700193]
[1731509547904,276.49839286,216.09,215.99,173.61071793]
[1731509548413,276.49839286,216.09,215.99,171.30951793]
[1731509549285,0.1,216.04,215.99,140.383358]
[1731509549611,276.49839286,216.09,215.99,140.383358]
[1731509549794,0.1,216.07,215.99,140.383358]
[1731509549985,276.49839286,216.09,215.99,140.383358]
[1731509550192,276.49839286,216.09,215.99,135.751358]
[1731509550387,276.49839286,216.09,215.99,159.20536811]
[1731509550913,276.49839286,216.09,215.99,159.32259084]
[1731509551214,276.49839286,216.09,215.99,131.119358]
[1731509552505,0.1,216.07,215.99,126.487358]
[1731509552692,0.1,216.06,215.99,126.487358]
[1731509552895,0.1,216.05,215.99,126.487358]
[1731509553096,0.1,216.0,215.99,126.487358]
[1731509553305,0.1,216.02,215.99,126.487358]
[1731509553496,0.1,216.06,215.99,126.487358]
[1731509554009,0.1,216.02,215.99,126.487358]
[1731509554313,0.1,216.06,215.99,126.487358]
[1731509555008,0.1,216.02,215.99,126.487358]
[1731509555214,0.1,216.03,215.99,126.487358]
[1731509556012,276.59839286,216.09,215.99,126.487358]
[1731509556013,0.1,216.01,215.99,126.487358]
[1731509556226,0.1,216.03,215.99,126.487358]
[1731509556719,0.1,216.06,215.99,126.487358]
[1731509556911,276.49839286,216.09,215.99,126.487358]
[1731509557397,276.49839286,216.09,215.99,121.855358]
[1731509557598,276.59839286,216.09,215.99,121.855358]
[1731509557795,276.49839286,216.09,215.99,121.855358]
[1731509558108,276.49839286,216.09,215.99,145.43651256]
[1731509558292,276.49839286,216.09,215.99,121.855358]
[1731509558492,276.49839286,216.09,215.99,117.223358]
[1731509559393,276.59839286,216.09,215.99,112.591358]
[1731509559593,0.1,216.05,215.99,135.99250698]
[1731509559815,0.1,216.07,215.99,135.99250698]
[1731509559989,0.1,216.05,215.99,110.289458]
[1731509560318,0.1,216.02,215.99,110.289458]
[1731509560610,0.1,216.01,215.99,103.767758]
[1731509560908,0.1,216.07,215.99,103.767758]
[1731509561320,0.1,216.02,215.99,103.767758]
[1731509561788,0.1,216.04,215.99,103.767758]
[1731509561992,0.2,216.0,215.99,103.767758]
[1731509562593,276.49839286,216.09,215.99,103.767758]
[1731509563116,276.49839286,216.09,215.99,127.14279729]
[1731509568609,276.49839286,216.09,215.99,131.77479729]
[1731509571021,276.49839286,216.09,215.99,127.14279729]
[1731509571323,276.49839286,216.09,215.99,131.77479729]
[1731509571832,276.49839286,216.09,215.99,127.14279729]
[1731509572406,276.59839286,216.09,215.99,127.14279729]
[1731509572603,276.49839286,216.09,215.99,127.14279729]
[1731509572810,276.49839286,216.09,215.99,122.50479729]
[1731509573108,276.49839286,216.09,215.99,117.87279729]
[1731509573836,0.18539494,216.08,215.99,117.87279729]
[1731509578304,0.18539494,216.08,215.99,113.24079729]
[1731509579310,0.18539494,216.08,215.99,108.60879729]
[1731509580309,0.18539494,216.08,215.99,103.97679729]
[1731509580915,0.18539494,216.08,215.99,266.07679729]
[1731509581629,0.18539494,216.08,215.99,261.44479729]
[1731509582435,0.18539494,216.08,215.99,256.81279729]
[1731509583333,0.18539494,216.08,215.99,270.72279729]
[1731509585732,0.18539494,216.08,215.99,256.81279729]
[1731509591533,0.28539494,216.08,215.99,256.81279729]
[1731509592040,0.18539494,216.08,215.99,256.81279729]
[1731509595333,0.28539494,216.08,215.99,233.437758]
[1731509595526,0.1,216.0,215.99,233.437758]
[1731509595724,0.1,216.0,215.99,230.062668]
[1731509595922,0.1,216.0,215.99,56.729568]
[1731509596121,0.2,216.0,215.99,18.754268]
[1731509596332,0.2,215.97,215.96,0.80103475]
[1731509596535,0.3,215.97,215.96,0.80103475]
[1731509596777,0.4,215.97,215.96,24.7589613]
[1731509596916,0.3,215.97,215.96,24.7589613]
[1731509597124,0.2,215.97,215.96,0.80103475]
[1731509597643,30.608,216.08,215.97,23.47671448]
[1731509597824,288.95849286,216.09,215.97,23.47671448]
[1731509598026,7.9031,216.08,215.96,0.80103475]
[1731509598723,275.57499286,216.09,215.96,0.80103475]
[1731509599041,275.57499286,216.09,216.03,23.94479671]
[1731509599256,274.77322086,216.09,216.04,23.40007868]
[1731509599454,273.85442086,216.09,216.04,185.50007868]
[1731509599627,271.42642086,216.09,216.04,185.50007868]
[1731509600140,271.42642086,216.09,215.96,0.80103475]
[1731509600341,0.17799998,216.08,215.97,23.21375814]
[1731509601248,10.21679998,216.08,215.96,2.74157776]
[1731509601443,10.21679998,216.08,215.97,0.12549]
[1731509601641,10.21679998,216.08,215.98,23.50653884]
[1731509602153,0.17799998,216.08,215.96,25.91715699]
[1731509603148,245.98019391,216.09,215.96,25.91715699]
[1731509603338,4.83841263,216.08,215.96,2.74157776]
[1731509603739,4.83841263,216.08,215.97,23.21375814]
[1731509604060,4.83841263,216.08,215.96,2.74157776]
[1731509605331,4.83841263,216.08,215.9,1.999]
[1731509605539,4.83841263,216.08,215.96,0.80254552]
[1731509605740,4.83841263,216.08,215.9,3.97775625]
[1731509606126,4.83841263,216.08,215.91,23.73261015]
[1731509606329,4.83841263,216.08,215.91,23.17814191]
[1731509606547,4.83841263,216.08,215.9,4.78046779]
[1731509606750,4.83841263,216.08,215.9,25.42279906]
[1731509607055,4.83841263,216.08,215.9,2.44279483]
[1731509607354,4.83841263,216.08,215.91,18.475958]
[1731509607931,27.64,216.06,215.91,20.45945767]
[1731509608560,27.64,216.02,215.91,20.45945767]
[1731509609338,32.47841263,216.08,215.91,20.45945767]
[1731509610041,32.47841263,216.08,215.92,0.12549]
[1731509610241,32.47841263,216.08,215.91,20.45945767]
[1731509610641,1.15685505,216.07,215.91,16.23145767]
[1731509610961,27.64,216.03,215.91,1.98349967]
[1731509611162,23.776884,215.98,215.71,23.81916641]
[1731509611358,23.776884,215.98,215.53,4.632]
[1731509611359,27.64,215.95,215.53,4.632]
[1731509611540,23.776884,215.94,215.73,23.46706436]
[1731509611743,27.64,215.93,215.72,42.41094311]
[1731509612146,27.64,215.93,215.73,23.46706436]
[1731509612343,28.79781196,216.07,215.73,23.46706436]
[1731509612558,27.64,216.07,215.73,23.46706436]
[1731509612864,4.73261263,216.08,215.77,0.12549]
[1731509613161,4.73261263,216.08,215.74,0.12549]
[1731509613351,4.73261263,216.08,215.75,0.1]
[1731509613542,4.73261263,216.08,215.8,0.1]
[1731509613736,4.73261263,216.08,215.86,0.12549]
[1731509614361,4.73261263,216.08,215.83,12.7807]
[1731509614577,4.73261263,216.08,215.88,0.1]
[1731509614746,4.73261263,216.08,215.94,0.1]
[1731509614946,4.73261263,216.08,215.98,0.1]
[1731509615176,227.00088707,216.09,216.0,0.1]
[1731509615454,225.96388707,216.09,216.0,162.1]
[1731509615653,225.96388707,216.09,216.02,23.40263231]
[1731509615862,225.96388707,216.09,216.01,23.64180567]
[1731509616164,225.96388707,216.09,216.0,162.1]
[1731509616165,225.96388707,216.09,216.02,23.42812231]
[1731509616749,225.96388707,216.09,216.07,23.96277513]
[1731509616945,225.96388707,216.09,216.07,186.06277513]
[1731509616946,224.86618707,216.09,216.07,186.06277513]
[1731509617146,211.05418707,216.09,216.07,186.06277513]
[1731509617365,211.05418707,216.09,216.08,0.22549]
[1731509617567,211.05418707,216.09,216.08,0.12549]
[1731509617764,205.27728707,216.09,216.08,185.51128554]
[1731509617944,130.08562007,216.09,216.08,185.51128554]
[1731509618265,57.9042212,216.09,216.08,187.36976278]
[1731509618470,11.2376212,216.09,216.08,187.36976278]
[1731509618654,0.4393272,216.39,216.17,0.1]
[1731509618853,0.4393272,216.39,216.33,0.0050728]
[1731509619064,0.4393272,216.39,216.34,0.12549]
[1731509619575,30.5116272,216.44,216.34,0.12549]
[1731509619880,30.5116272,216.44,216.33,1.9376782]
[1731509620058,30.5116272,216.44,216.26,23.5957354]
[1731509620259,30.5116272,216.44,216.26,23.7212254]
[1731509620648,30.5116272,216.44,216.29,0.12549]
[1731509620973,30.5116272,216.44,216.31,24.05264751]
[1731509621855,12.7368,216.59,216.33,0.22549]
[1731509622056,12.7368,216.59,216.35,23.41475483]
[1731509622570,32.1261,216.58,216.34,23.00777584]
[1731509622876,32.1261,216.58,216.26,23.39655761]
[1731509623051,32.1261,216.58,216.21,23.21325033]
[1731509623252,32.1261,216.58,216.17,23.38252048]
[1731509623649,32.1261,216.58,216.16,23.47522582]
[1731509624072,31.9624,216.56,216.17,23.48252048]
[1731509624283,31.9624,216.56,216.26,0.1]
[1731509624584,31.9624,216.56,216.25,23.38063317]
[1731509624753,31.9624,216.56,216.23,23.3519102]
[1731509624954,31.9624,216.56,216.12,23.47374514]
[1731509625252,32.7425,216.53,216.19,23.4903306]
[1731509625781,32.7425,216.53,216.08,32.80404153]
[1731509625782,32.7425,216.53,216.21,23.31325033]
[1731509626075,9.68872013,216.53,216.32,23.26221041]
[1731509626261,8.77052013,216.53,216.26,23.29655761]
[1731509626651,8.77052013,216.53,216.24,23.45043326]
[1731509626864,8.77052013,216.53,216.28,23.54656735]
[1731509627057,8.77052013,216.53,216.35,23.75637568]
[1731509627280,8.77052013,216.53,216.39,0.12549]
[1731509627871,8.77052013,216.53,216.4,0.12549]
[1731509628075,8.77052013,216.53,216.39,4.632]
[1731509628276,8.77052013,216.53,216.39,3.132]
[1731509628578,20.57886571,216.72,216.34,23.36946296]
[1731509628956,27.64,216.71,216.38,0.12549]
[1731509629158,20.57886571,216.72,216.38,0.12549]
[1731509629365,20.57886571,216.72,216.39,0.1]
[1731509630373,27.64,216.71,216.29,23.74736509]
[1731509630577,27.64,216.71,216.31,0.1]
[1731509631078,20.57886571,216.72,216.35,23.5165972]
[1731509631276,20.57886571,216.72,216.4,4.632]
[1731509631456,31.5761,216.7,216.4,4.632]
[1731509631886,31.5761,216.7,216.42,0.12549]
[1731509632473,31.5761,216.7,216.39,0.1]
[1731509632686,31.5761,216.7,216.42,0.19]
[1731509632981,30.72790486,216.7,216.43,4.632]
[1731509633172,30.72790486,216.7,216.45,4.732]
[1731509633374,30.72790486,216.7,216.39,23.70674943]
[1731509633563,30.72790486,216.7,216.47,27.9488335]
[1731509633763,30.72790486,216.7,216.47,4.632]
[1731509633965,30.72790486,216.7,216.48,0.12549]
[1731509634156,30.72790486,216.7,216.47,4.632]
[1731509634360,30.72790486,216.7,216.36,23.21997469]
[1731509634677,30.72790486,216.7,216.46,0.12549]
[1731509635359,30.72790486,216.7,216.48,0.1]
[1731509635680,30.72790486,216.7,216.52,0.12549]
[1731509636360,30.1459,216.68,216.35,0.1]
[1731509636562,30.1459,216.68,216.37,0.1]
[1731509636876,23.776884,216.67,216.36,4.732]
[1731509637085,30.1459,216.68,216.35,1.95726104]
[1731509637086,30.1459,216.68,216.4,4.732]
[1731509637380,27.64,216.66,216.34,23.77704807]
[1731509637562,23.776884,216.65,216.38,23.99106201]
[1731509637764,23.776884,216.67,216.38,23.99106201]
[1731509637969,23.776884,216.67,216.39,28.41554321]
[1731509638383,51.416884,216.67,216.39,28.41554321]
[1731509638585,82.622684,216.65,216.39,4.632]
[1731509638880,23.776884,216.58,216.28,4.732]
[1731509639065,23.776884,216.58,216.28,4.632]
[1731509639264,51.416884,216.58,216.28,4.632]
[1731509639461,1.15417324,216.71,216.28,4.632]
[1731509639462,23.776884,216.55,216.28,4.632]
[1731509639657,51.416884,216.55,216.28,4.632]
[1731509640061,33.2041,216.57,216.2,0.1]
[1731509640062,51.416884,216.53,216.2,4.7]
[1731509640457,23.776884,216.5,216.2,4.7]
[1731509640658,51.416884,216.5,216.22,4.6]
[1731509641060,12.091,216.52,216.22,4.7]
[1731509641264,23.776884,216.49,216.22,28.34200296]
[1731509641474,31.9542,216.5,216.22,28.34200296]
[1731509641824,13.212,216.45,216.21,18.438457]
[1731509641992,23.776884,216.42,216.21,18.438457]
[1731509642163,27.64,216.39,216.21,18.438457]
[1731509642367,27.64,216.37,216.21,18.438457]
[1731509642576,1.15542774,216.71,216.21,18.438457]
[1731509642577,27.64,216.34,216.21,18.438457]
[1731509642779,23.776884,216.31,216.21,18.438457]
[1731509642960,23.776884,216.31,216.22,0.12549]
[1731509643280,27.64,216.4,216.21,18.438457]
[1731509643483,23.776884,216.39,216.21,18.438457]
[1731509643698,23.776884,216.39,216.1,23.68971705]
[1731509643984,21.15530454,216.71,216.12,0.1]
[1731509644287,27.64,216.67,216.2,0.1]
[1731509644467,27.64,216.63,216.23,0.1]
[1731509644672,27.64,216.57,216.18,0.1]
[1731509644882,27.64,216.53,216.18,0.1]
[1731509645067,28.79473861,216.52,216.15,0.1]
[1731509645271,12.4054,216.48,216.13,0.1]
[1731509645471,13.56033788,216.48,216.15,0.1]
[1731509645672,12.4054,216.48,216.2,0.1]
[1731509646090,12.4054,216.48,216.12,2.51469085]
[1731509646091,12.4054,216.48,216.22,0.1]
[1731509646383,12.4054,216.48,216.28,0.1]
[1731509646569,12.4054,216.48,216.3,0.1]
[1731509646883,12.4054,216.48,216.22,0.12549]
[1731509647090,12.4054,216.48,216.23,0.1]
[1731509647469,12.4054,216.48,216.21,5.01189746]
[1731509647669,12.7539,216.45,216.21,5.01189746]
[1731509647869,51.416884,216.42,216.21,0.40389746]
[1731509648088,20.57886571,216.72,216.07,0.5393272]
[1731509648089,27.64,216.37,216.07,23.74372539]
[1731509648383,52.5725893,216.36,216.0,23.02314442]
[1731509648585,52.5725893,216.36,215.99,23.489524]
[1731509648771,23.776884,216.31,215.99,23.489524]
[1731509648969,40.589,216.32,215.99,23.489524]
[1731509648970,12.438,216.28,216.01,23.78810155]
[1731509649166,23.776884,216.27,216.01,0.1]
[1731509649392,23.776884,216.27,215.98,3.29240291]
[1731509649393,23.776884,216.27,216.03,0.1]
[1731509649564,12.438,216.28,216.07,0.1]
[1731509649765,12.438,216.28,216.05,0.1]
[1731509649973,12.438,216.28,216.11,0.1]
[1731509650166,11.5188,216.28,216.11,0.1]
[1731509650374,11.5188,216.28,216.1,0.1]
[1731509650581,11.5188,216.28,216.15,0.1]
[1731509650984,11.5188,216.28,216.18,0.1]
[1731509651381,12.949,216.59,216.19,0.12549]
[1731509651584,14.10421768,216.58,216.19,0.12549]
[1731509651889,1.15521768,216.58,216.21,0.12549]
[1731509652092,1.15521768,216.58,216.2,12.949]
[1731509652390,0.1,216.26,215.92,23.96621608]
[1731509652593,0.1,216.23,215.99,0.12549]
[1731509652795,0.1,216.18,216.03,0.80185632]
[1731509652999,0.1,216.18,216.01,28.25394542]
[1731509653178,12.949,216.21,216.01,28.25394542]
[1731509653379,51.516884,216.18,216.03,0.80190415]
[1731509653570,0.1,216.2,216.03,0.80190415]
[1731509653995,0.1,216.26,216.04,0.12549]
[1731509654183,0.1,216.24,216.03,0.80190415]
[1731509654384,0.1,216.24,216.04,4.6]
[1731509654586,40.689,216.24,216.04,4.6]
[1731509654797,12.949,216.24,216.04,4.6]
[1731509655010,12.949,216.24,216.05,0.12549]
[1731509655176,12.949,216.24,216.07,0.12549]
[1731509655996,12.949,216.4,216.06,4.6]
[1731509656194,12.949,216.4,216.08,33.3230455]
[1731509656391,0.1,216.38,216.08,33.3230455]
[1731509656587,0.1,216.34,216.08,9.45978313]
[1731509656894,0.1,216.34,216.05,18.455801]
[1731509656895,27.64,216.29,216.05,13.854801]
[1731509657076,27.74,216.29,216.05,18.454801]
[1731509657390,27.74,216.29,216.06,0.12549]
[1731509657778,27.64,216.27,216.06,0.12549]
[1731509658001,23.776884,216.28,216.05,13.854801]
[1731509658290,51.416884,216.28,216.06,0.12549]
[1731509658589,0.1,216.29,216.06,0.12549]
[1731509658789,1.15581609,216.29,216.05,13.854801]
[1731509659093,0.1,216.25,216.05,13.854801]
[1731509659302,0.1,216.28,216.05,13.854801]
[1731509659303,0.1,216.17,216.05,13.854801]
[1731509659598,0.1,216.14,216.04,2.43799647]
[1731509659897,0.1,216.17,215.99,13.854801]
[1731509660094,0.1,216.18,215.99,13.854801]
[1731509660303,12.949,216.16,215.87,23.29857268]
[1731509660473,12.949,216.16,215.97,0.80246606]
[1731509660679,12.949,216.16,215.87,23.29857268]
[1731509660893,51.416884,216.15,215.87,23.29857268]
[1731509661198,12.8236,216.16,215.98,0.12549]
[1731509661401,0.4393272,216.6,216.04,0.1]
[1731509661604,0.4393272,216.6,216.11,0.1]
[1731509661781,1.15587989,216.59,216.13,0.1]
[1731509661974,1.15587989,216.59,216.11,0.92439294]
[1731509661975,1.15587989,216.59,216.12,1.970683]
[1731509663004,0.1,216.36,216.04,0.12549]
[1731509663298,0.1,216.41,216.13,1.845675]
[1731509663500,0.1,216.44,216.13,1.845675]
[1731509663678,0.1,216.48,216.14,0.92439471]
[1731509663883,0.1,216.53,216.17,0.1]
[1731509664097,1.15525545,216.56,216.22,0.1]
[1731509664287,1.25525545,216.56,216.22,1.02393551]
[1731509664606,0.1,216.51,216.22,0.92393551]
[1731509664979,0.1,216.54,216.23,0.92423349]
[1731509665182,1.1551849,216.53,216.24,0.12549]
[1731509665404,1.1551849,216.53,216.26,0.12549]
[1731509665604,0.1,216.52,216.17,0.1]
[1731509665793,0.1,216.48,216.18,0.92422862]
[1731509665988,0.1,216.37,216.13,0.66650343]
[1731509666301,0.1,216.29,216.13,2.41357907]
[1731509666488,0.1,216.27,215.89,23.9296453]
[1731509666692,0.1,216.27,216.0,18.469871]
[1731509666885,0.1,216.3,216.0,18.469871]
[1731509667087,0.1,216.26,216.0,18.469871]
[1731509667396,1.15656801,216.26,216.0,18.469871]
[1731509667696,23.776884,216.24,216.0,20.99894771]
[1731509667898,23.776884,216.22,216.0,20.99894771]
[1731509668095,161.6,216.53,216.0,20.99894771]
[1731509668096,1.15645133,216.21,216.0,20.99894771]
[1731509668285,0.1,216.31,216.0,20.99894771]
[1731509668487,0.1,216.29,216.0,20.99894771]
[1731509668693,0.1,216.32,216.0,20.99894771]
[1731509668901,0.1,216.31,216.0,20.99894771]
[1731509669095,23.776884,216.3,216.01,4.6]
[1731509669291,1.15634744,216.29,216.02,0.12549]
[1731509669614,0.1,216.46,216.14,0.12549]
[1731509669906,23.11335221,216.72,216.14,0.12549]
[1731509669907,1.15587665,216.45,216.14,0.12549]
[1731509670085,0.1,216.54,216.14,0.12549]
[1731509670286,1.15547166,216.53,216.14,0.12549]
[1731509670506,0.1,216.46,216.14,0.12549]
[1731509670801,0.1,216.43,216.14,0.12549]
[1731509670981,1.1557604,216.43,216.14,0.12549]
[1731509672198,0.1,216.38,216.14,2.47714225]
[1731509672402,1.15622199,216.37,216.13,0.8]
[1731509672691,1.15622199,216.37,216.14,0.12549]
[1731509673005,0.1,216.35,216.13,0.8]
[1731509673204,23.776884,216.31,216.05,2.52416563]
[1731509673414,23.776884,216.31,215.94,23.8797755]
[1731509673415,27.64,216.26,215.97,0.1]
[1731509673705,27.64,216.21,215.94,23.8797755]
[1731509674913,27.64,216.12,216.0,2.46848005]
[1731509675211,1.15710426,216.11,215.9,4.6]
[1731509675508,1.15692922,216.11,215.94,4.6]
[1731509675888,1.15692922,216.11,215.89,23.56583088]
[1731509675889,27.64,216.09,215.89,23.56583088]
[1731509676084,27.64,216.09,215.9,0.12549]
[1731509676315,27.64,216.07,215.89,23.56583088]
[1731509676494,27.64,216.02,215.88,2.49602628]
[1731509676688,27.64,216.02,215.86,0.4393272]
[1731509676883,27.5146,216.02,215.86,2.96755388]
[1731509677083,27.5146,216.02,215.87,0.1]
[1731509677283,27.64,216.18,215.89,0.1]
[1731509677505,1.15678936,216.17,215.88,0.12549]
[1731509677806,1.15678936,216.17,215.86,0.5393272]
[1731509677807,1.15678936,216.17,215.87,0.12549]
[1731509678005,1.15678936,216.17,215.88,0.1]
[1731509678506,28.79678936,216.17,215.92,0.1]
[1731509678890,26.74542157,216.17,215.92,0.1]
[1731509679192,1.15665997,216.16,215.9,0.1]
[1731509679396,27.00750311,216.16,215.89,4.72549]
[1731509679710,25.85084314,216.16,215.93,0.1]
[1731509679917,1.15676656,216.48,216.09,0.1]
[1731509680490,1.15676656,216.48,216.15,0.1]
[1731509680704,1.15547711,216.47,216.15,0.1]
[1731509680907,0.1,216.53,216.15,0.1]
[1731509681092,0.1,216.48,216.14,4.72549]
[1731509681296,0.1,216.5,216.14,4.72549]
[1731509681606,2.1766,216.47,216.13,11.15119]
[1731509681809,1.15584126,216.46,216.05,24.55570353]
[1731509682005,1.15584126,216.46,216.09,0.1]
[1731509682306,1.25584126,216.46,216.09,23.41800134]
[1731509682492,1.25584126,216.46,216.05,2.47843488]
[1731509682695,1.25584126,216.46,216.05,4.7]
[1731509682898,1.25584126,216.46,216.05,4.6]
[1731509683094,1.15584126,216.46,216.07,4.6]
[1731509683293,27.64,216.42,216.07,4.6]
[1731509683506,1.15567183,216.41,216.07,5.62473317]
[1731509683711,1.15567183,216.41,216.09,0.1]
[1731509684290,28.79567183,216.41,216.06,4.6]
[1731509684710,27.64,216.35,216.06,4.6]
[1731509684885,27.64,216.3,216.08,4.6]
[1731509685088,23.776884,216.25,216.08,4.6]
[1731509685289,27.64,216.22,216.08,4.6]
[1731509685695,27.64,216.22,216.09,0.12549]
[1731509686407,27.64,216.35,216.09,4.72549]
[1731509686610,23.776884,216.38,216.09,4.72549]
[1731509686611,27.64,216.32,216.09,4.72549]
[1731509686909,1.1562391,216.31,216.09,4.72549]
[1731509687216,27.64,216.29,216.11,0.1]
[1731509687512,0.1,216.54,216.15,0.1]
[1731509687710,0.1,216.53,216.13,0.1]
[1731509687907,1.15563988,216.52,216.13,0.1]
[1731509688203,0.1,216.49,216.13,0.1]
[1731509688429,0.1,216.58,216.19,0.1]
[1731509688595,1.15537338,216.58,216.19,0.1]
[1731509688794,2.1766,216.57,216.23,0.1]
[1731509689003,1.15520118,216.56,216.23,0.1]
[1731509689212,1.15520118,216.56,216.21,0.1]
[1731509689506,1.15520118,216.56,216.28,0.1]
[1731509689717,1.15520118,216.56,216.22,0.22549]
[1731509690592,1.15520118,216.56,216.26,4.72549]
[1731509690811,1.15520118,216.56,216.27,4.6]
[1731509691108,1.15520118,216.56,216.21,25.52952172]
[1731509691311,1.15520118,216.56,216.17,23.45262087]
[1731509691491,27.74,216.55,216.17,23.45262087]
[1731509691691,27.64,216.49,216.17,23.45262087]
[1731509691888,27.64,216.44,216.24,28.17316876]
[1731509692091,27.64,216.41,216.24,28.17316876]
[1731509692292,1.15543957,216.4,216.23,23.86146181]
[1731509692593,27.64,216.41,216.27,0.1]
[1731509692910,27.64,216.41,216.24,23.57316876]
[1731509692911,27.64,216.41,216.29,0.1]
[1731509693110,1.15548654,216.56,216.29,0.1]
[1731509693921,0.4393272,216.6,216.37,0.1]
[1731509694216,0.4393272,216.6,216.33,4.72549]
[1731509694420,1.1547138,216.59,216.34,0.1]
[1731509694618,1.1547138,216.59,216.33,4.72549]
[1731509694819,1.1547138,216.59,216.33,4.82549]
[1731509694998,1.1547138,216.59,216.36,0.1]
[1731509695202,0.4393272,216.6,216.39,0.1]
[1731509695416,0.4393272,216.6,216.35,4.6]
[1731509695613,1.15453362,216.59,216.36,0.12549]
[1731509695803,1.15453362,216.59,216.36,0.22549]
[1731509696005,0.4393272,216.6,216.36,0.22549]
[1731509696204,0.4393272,216.6,216.43,0.1]
[1731509696909,0.3139272,216.6,216.51,0.1]
[1731509697799,0.3139272,216.6,216.54,0.1]
[1731509698111,0.3139272,216.6,216.52,0.1]
[1731509698326,0.3139272,216.6,216.49,0.1]
[1731509699095,0.3139272,216.6,216.53,0.1]
[1731509699397,0.3139272,216.6,216.55,0.1]
[1731509699809,0.3139272,216.6,216.58,0.1]
[1731509700205,20.57886571,216.72,216.58,0.1]
[1731509700428,20.57886571,216.72,216.56,0.1]
[1731509700727,20.57886571,216.72,216.58,0.1]
[1731509700899,20.57886571,216.72,216.61,0.1]
[1731509701101,20.57886571,216.72,216.6,4.72549]
[1731509701305,20.57886571,216.72,216.6,2.56176139]
[1731509701606,20.57886571,216.72,216.6,4.72549]
[1731509702027,20.57886571,216.72,216.6,2.42769]
[1731509702210,20.07886571,216.72,216.59,9.80659229]
[1731509702533,20.07886571,216.72,216.58,2.47326042]
[1731509702534,1.15362555,216.71,216.58,2.47326042]
[1731509702701,1.15362555,216.71,216.42,30.5514]
[1731509702902,27.64,216.67,216.49,0.1]
[1731509703101,1.15413618,216.69,216.52,0.1]
[1731509703410,20.07886571,216.72,216.58,0.1]
[1731509704121,20.07886571,216.72,216.56,0.1]
[1731509704315,47.71886571,216.72,216.54,0.1]
[1731509704515,1.15376604,216.71,216.51,3.09536088]
[1731509704715,1.15376604,216.71,216.52,0.1]
[1731509705033,1.15376604,216.71,216.54,0.1]
[1731509705323,47.71886571,216.72,216.6,0.1]
[1731509705504,47.71886571,216.72,216.61,0.1]
[1731509705703,47.71886571,216.72,216.59,0.1]
[1731509705911,20.07886571,216.72,216.63,0.1]